fUST/lending_fUST_20251102
["ID","MTS","AMOUNT","RATE_DAILY","PERIOD"]
[392853705,1762061901662,150.0,0.0002045,2]
[392853706,1762061902083,150.0,0.00021424,2]
[392853707,1762061902289,-168.95182168,0.00023274,2]
[392853708,1762061902505,157.13,0.00022398,2]
[392853710,1762061948890,5000.0,0.00023274,2]
[392853711,1762061956659,3942.88,0.00023274,2]
[392853712,1762061956686,1057.12,0.00023274,2]
[392853713,1762061959176,630.89578415,0.00023174,2]
[392853714,1762061965093,5000.0,0.00023274,2]
[392853715,1762061972957,5000.0,0.00023371,2]
[392853716,1762061978260,150.0,0.00021478,2]
[392853717,1762061978661,150.0,0.00022501,2]
[392853718,1762061981058,1600.69012418,0.00023414,2]
[392853719,1762061988773,5000.0,0.00023414,2]
[392853720,1762061996730,3099.31987582,0.00023414,2]
[392853721,1762062000989,-1900.68012418,0.00023414,2]
[392853727,1762062011746,151.0,0.0003792,60]
[392853728,1762062012352,156.587,0.0003792,60]
[392853729,1762062012980,162.380719,0.0003792,60]
[392853730,1762062013628,168.3888056,0.0003792,60]
[392853731,1762062014277,174.61919141,0.0003792,60]
[392853732,1762062014933,181.08010149,0.0003792,60]
[392853733,1762062015568,187.78006525,0.0003792,60]
[392853734,1762062016193,194.72792766,0.0003792,60]
[392853735,1762062016840,201.93286099,0.0003792,60]
[392853736,1762062017463,209.40437684,0.0003792,60]
[392853737,1762062018122,217.15233878,0.0003792,60]
[392853738,1762062018827,225.18697532,0.0003792,60]
[392853739,1762062019434,233.51889341,0.0003792,60]
[392853740,1762062019668,5000.0,0.00023,2]
[392853741,1762062020042,242.15909246,0.0003792,60]
[392853742,1762062020681,251.11897888,0.0003792,60]
[392853743,1762062021305,260.4103811,0.0003792,60]
[392853744,1762062021917,270.0455652,0.0003792,60]
[392853745,1762062022683,280.03725112,0.0003792,60]
[392853746,1762062023195,290.39862941,0.0003792,60]
[392853747,1762062023822,290.39862941,0.0003792,60]
[392853748,1762062041642,5000.0,0.00023,2]
[392853749,1762062054198,150.0,0.00020418,2]
[392853750,1762062054561,150.0,0.0002139,2]
[392853751,1762062054968,168.31,0.00022362,2]
[392853752,1762062064020,5000.0,0.00023,2]
[392853753,1762062086019,5000.0,0.00023,2]
[392853754,1762062094929,300.0,0.000224,2]
[392853755,1762062096124,-217.93552082,0.00023273,2]
[392853756,1762062099291,-300.0,0.00023273,2]
[392853757,1762062101104,-226.38396877,0.00023273,2]
[392853758,1762062103054,-200.0437462,0.00023273,2]
[392853759,1762062106491,300.0,0.000224,2]
[392853760,1762062106520,-269.39634705,0.00023273,2]
[392853762,1762062108422,797.28116779,0.00023273,2]
[392853763,1762062108653,-373.11109552,0.00023273,2]
[392853764,1762062112134,-276.52831282,0.00023273,2]
[392853765,1762062113755,-892.49934035,0.00023273,2]
[392853766,1762062116240,-159.85015531,0.00023273,2]
[392853767,1762062117960,300.0,0.000224,2]
[392853768,1762062118372,-326.8265831,0.00023273,2]
[392853769,1762062122550,-175.46816982,0.00023273,2]
[392853770,1762062124082,-241.71034407,0.00023273,2]
[392853771,1762062125116,156.85395223,0.0003792,60]
[392853772,1762062126429,-247.11059673,0.00023273,2]
[392853773,1762062131066,150.0,0.00020904,2]
[392853774,1762062131550,150.0,0.00021899,2]
[392853775,1762062131959,150.43,0.00022895,2]
[392853776,1762062131992,2693.10459772,0.00023,2]
[392853778,1762062143235,-311.10763275,0.00023014,2]
[392853779,1762062147690,300.0,0.000224,2]
[392853780,1762062154547,311.10763275,0.00023,2]
[392853782,1762062158231,300.0,0.000224,2]
[392853783,1762062169410,300.0,0.000224,2]
[392853784,1762062180583,300.0,0.000224,2]
[392853785,1762062191612,300.0,0.000224,2]
[392853786,1762062202739,300.0,0.000224,2]
[392853787,1762062204981,150.0,0.00021004,2]
[392853788,1762062205373,150.0,0.00022004,2]
[392853789,1762062208989,227.4839766,0.000224,2]
[392853790,1762062212099,5000.0,0.00023,2]
[392853791,1762062217607,-150.0,0.00023004,2]
[392853792,1762062217628,-49.36520243,0.00023014,2]
[392853793,1762062219805,199.35404555,0.00023,2]
[392853796,1762062235497,5000.0,0.00023,2]
[392853797,1762062258317,5000.0,0.00023,2]
[392853800,1762062277601,150.0,0.00021199,2]
[392853801,1762062278015,150.0,0.00022208,2]
[392853802,1762062280577,5000.0,0.00023,2]
[392853803,1762062303377,5000.0,0.00023,2]
[392853804,1762062314075,151.0,0.00037919,60]
[392853805,1762062314690,156.587,0.00037919,60]
[392853806,1762062315294,162.380719,0.00037919,60]
[392853807,1762062315917,168.3888056,0.00037919,60]
[392853809,1762062316539,174.61919141,0.00037919,60]
[392853810,1762062317147,181.08010149,0.00037919,60]
[392853811,1762062317756,187.78006525,0.00037919,60]
[392853812,1762062318895,194.72792766,0.00037919,60]
[392853814,1762062321170,201.93286099,0.00037919,60]
[392853815,1762062321797,209.40437684,0.00037919,60]
[392853816,1762062322598,217.15233878,0.00037919,60]
[392853817,1762062323040,225.18697532,0.00037919,60]
[392853818,1762062323653,233.51889341,0.00037919,60]
[392853819,1762062324258,242.15909246,0.00037919,60]
[392853820,1762062324892,251.11897888,0.00037919,60]
[392853821,1762062325507,260.4103811,0.00037919,60]
[392853822,1762062326109,270.0455652,0.00037919,60]
[392853824,1762062326529,5000.0,0.00023,2]
[392853825,1762062326737,280.03725112,0.00037919,60]
[392853826,1762062327360,290.39862941,0.00037919,60]
[392853827,1762062328026,290.39862941,0.00037919,60]
[392853828,1762062353097,150.0,0.00021061,2]
[392853829,1762062353655,150.0,0.00022064,2]
[392853830,1762062368218,-4.57105052,0.00023014,2]
[392853831,1762062368240,-163.06125952,0.0002304,2]
[392853832,1762062368266,-0.27265842,0.00023067,2]
[392853837,1762062425581,150.0,0.00021173,2]
[392853838,1762062426006,150.0,0.00022181,2]
[392853839,1762062514891,306.84943915,0.00023,2]
[392853844,1762062539693,5000.0,0.0002319,2]
[392853845,1762062570348,167.90496846,0.00023,2]
[392853846,1762062571214,-162.88488126,0.000232,2]
[392853847,1762062572034,150.0,0.00020318,2]
[392853848,1762062572466,150.0,0.00021286,2]
[392853849,1762062572880,150.0,0.00022254,2]
[392853850,1762062577612,-137.11511874,0.000232,2]
[392853851,1762062577636,-77.33973512,0.00023221,2]
[392853852,1762062593567,377.33973512,0.00023,2]
[392853853,1762062630660,-72.66026488,0.00023221,2]
[392853854,1762062630683,-242.67672684,0.00023271,2]
[392853928,1762062632948,-4757.32327316,0.00023271,2]
[392853930,1762062632958,-160.0,0.00023505,2]
[392853932,1762062632967,-207.26,0.00023659,10]
[392853934,1762062632976,-172.71,0.00023659,10]
[392853936,1762062632985,-863.59,0.00023659,10]
[392853938,1762062632994,-300.0,0.00023668,2]
[392853940,1762062633003,-226.0,0.00023668,2]
[392853941,1762062633012,-1200.0,0.00023668,2]
[392853944,1762062633021,-395.49019612,0.00023668,2]
[392853945,1762062633030,-1200.0,0.00023669,2]
[392853948,1762062633039,-500.0,0.00023673,2]
[392853950,1762062633049,-126.88968625,0.00023677,2]
[392853992,1762062637642,-163.57254089,0.00023342,2]
[392854001,1762062638606,-151.76445083,0.00023342,2]
[392854002,1762062638616,-500.0,0.00023668,2]
[392854003,1762062638626,-500.0,0.00023668,2]
[392854004,1762062638635,-500.0,0.00023668,2]
[392854005,1762062638645,-500.0,0.00023668,2]
[392854006,1762062638654,-500.0,0.00023668,2]
[392854007,1762062638663,-500.0,0.00023668,2]
[392854008,1762062638672,-500.0,0.00023668,2]
[392854009,1762062638681,-435.90613512,0.00023668,2]
[392854010,1762062638690,-500.0,0.00023668,2]
[392854011,1762062638699,-500.0,0.00023668,2]
[392854012,1762062638708,-500.0,0.00023668,2]
[392854013,1762062638718,-500.0,0.00023668,2]
[392854014,1762062638727,-500.0,0.00023668,2]
[392854015,1762062638736,-500.0,0.00023668,2]
[392854016,1762062638746,-500.0,0.00023668,2]
[392854018,1762062638755,-500.0,0.00023668,2]
[392854019,1762062638764,-503.56751658,0.00023668,2]
[392854020,1762062638774,-616.42569725,0.00023668,2]
[392854021,1762062638783,-500.0,0.00023668,2]
[392854022,1762062638793,-500.0,0.00023668,2]
[392854023,1762062638803,-500.0,0.00023668,2]
[392854024,1762062638812,-500.0,0.00023668,2]
[392854025,1762062638822,-500.0,0.00023668,2]
[392854026,1762062638831,-500.0,0.00023668,2]
[392854027,1762062638840,-500.0,0.00023668,2]
[392854028,1762062638850,-500.0,0.00023668,2]
[392854029,1762062638859,-500.0,0.00023668,2]
[392854030,1762062638869,-500.0,0.00023668,2]
[392854031,1762062638878,-500.0,0.00023668,2]
[392854032,1762062638889,-500.0,0.00023668,2]
[392854033,1762062638898,-500.0,0.00023668,2]
[392854034,1762062638908,-500.0,0.00023668,2]
[392854035,1762062638918,-500.0,0.00023668,2]
[392854036,1762062638927,-500.0,0.00023668,2]
[392854037,1762062638937,-500.0,0.00023668,2]
[392854038,1762062638947,-500.0,0.00023668,2]
[392854039,1762062638957,-500.0,0.00023668,2]
[392854040,1762062638966,-500.0,0.00023668,2]
[392854041,1762062638976,-500.0,0.00023668,2]
[392854042,1762062638985,-500.0,0.00023668,2]
[392854043,1762062638995,-500.0,0.00023668,2]
[392854044,1762062639005,-500.0,0.00023668,2]
[392854045,1762062639014,-500.0,0.00023668,2]
[392854046,1762062639023,-500.0,0.00023668,2]
[392854047,1762062639032,-500.0,0.00023668,2]
[392854048,1762062639042,-500.0,0.00023668,2]
[392854049,1762062639051,-500.0,0.00023668,2]
[392854050,1762062639061,-500.0,0.00023668,2]
[392854051,1762062639071,-500.0,0.00023668,2]
[392854052,1762062639081,-500.0,0.00023668,2]
[392854053,1762062639091,-500.0,0.00023668,2]
[392854054,1762062639101,-500.0,0.00023668,2]
[392854055,1762062639110,-500.0,0.00023668,2]
[392854056,1762062639120,-500.0,0.00023668,2]
[392854057,1762062639133,-500.0,0.00023668,2]
[392854058,1762062639142,-500.0,0.00023668,2]
[392854059,1762062639151,-500.0,0.00023668,2]
[392854060,1762062639161,-500.0,0.00023668,2]
[392854061,1762062639171,-448.72488932,0.00023668,2]
[392854062,1762062639182,-500.0,0.00023668,2]
[392854063,1762062639191,-500.0,0.00023668,2]
[392854064,1762062639200,-500.0,0.00023668,2]
[392854065,1762062639211,-500.0,0.00023668,2]
[392854066,1762062639221,-500.0,0.00023668,2]
[392854067,1762062639230,-500.0,0.00023668,2]
[392854068,1762062639240,-500.0,0.00023668,2]
[392854069,1762062639249,-500.0,0.00023668,2]
[392854070,1762062639259,-500.0,0.00023668,2]
[392854071,1762062639269,-500.0,0.00023668,2]
[392854072,1762062639279,-500.0,0.00023668,2]
[392854073,1762062639288,-500.0,0.00023668,2]
[392854074,1762062639298,-500.0,0.00023668,2]
[392854075,1762062639307,-500.0,0.00023668,2]
[392854076,1762062639318,-500.0,0.00023668,2]
[392854077,1762062639327,-500.0,0.00023668,2]
[392854078,1762062639337,-500.0,0.00023668,2]
[392854079,1762062639346,-500.0,0.00023668,2]
[392854080,1762062639356,-500.0,0.00023668,2]
[392854081,1762062639365,-500.0,0.00023668,2]
[392854082,1762062639374,-500.0,0.00023668,2]
[392854083,1762062639383,-500.0,0.00023668,2]
[392854084,1762062639393,-500.0,0.00023668,2]
[392854085,1762062639403,-500.0,0.00023668,2]
[392854086,1762062639412,-500.0,0.00023668,2]
[392854087,1762062639422,-500.0,0.00023668,2]
[392854088,1762062639432,-500.0,0.00023668,2]
[392854089,1762062639441,-500.0,0.00023668,2]
[392854090,1762062639450,-500.0,0.00023668,2]
[392854091,1762062639459,-500.0,0.00023668,2]
[392854092,1762062639468,-650.0,0.00023668,2]
[392854093,1762062639477,-500.0,0.00023668,2]
[392854094,1762062639486,-500.0,0.00023668,2]
[392854095,1762062639495,-500.0,0.00023668,2]
[392854096,1762062639504,-633.41118209,0.00023668,2]
[392854097,1762062639580,-373.11031375,0.00023677,2]
[392854098,1762062639605,-1024.110245,0.00023687,2]
[392854099,1762062639615,-1263.60684516,0.000237,2]
[392854100,1762062639624,-23985.6659385,0.000237,2]
[392854101,1762062639633,-45246.65361302,0.00023756,2]
[392854102,1762062639646,-6338.48604256,0.00023756,2]
[392854103,1762062639658,-27644.71157054,0.00023756,2]
[392854104,1762062639668,-384702.76212457,0.00023756,2]
[392854105,1762062639678,-8863.15,0.000238,7]
[392854106,1762062639687,-689.49,0.000238,14]
[392854107,1762062639699,-1263.60684514,0.0002395,2]
[392854108,1762062639708,-500.0,0.00023951,2]
[392854109,1762062639717,-415.20866477,0.00023985,2]
[392854110,1762062639726,-83807.93999804,0.0002399,2]
[392854111,1762062639736,-747.37559658,0.00024185,2]
[392854112,1762062639745,-150.0,0.00024189,2]
[392854113,1762062639755,-1263.60684514,0.000242,2]
[392854114,1762062639763,-500.0,0.00024225,2]
[392854115,1762062639772,-1263.60684514,0.0002445,2]
[392854116,1762062639781,-1263.60684514,0.000247,2]
[392854117,1762062639792,-500.0,0.00024806,9]
[392854118,1762062639802,-502.11324047,0.00024806,9]
[392854119,1762062639811,-168.0,0.00024893,2]
[392854120,1762062639820,-1328.66772726,0.000249,2]
[392854121,1762062639829,-168.0,0.00024906,2]
[392854122,1762062639838,-1450.31284209,0.0002491,3]
[392854123,1762062639847,-192.41228624,0.0002504,2]
[392854124,1762062639856,-163.35,0.00025156,2]
[392854125,1762062639865,-168.0,0.00025194,2]
[392854126,1762062639874,-447.64,0.00025342,2]
[392854127,1762062639883,-299.6292715,0.00025485,2]
[392854128,1762062639893,-420.29491112,0.00025493,2]
[392854129,1762062639902,-168.0,0.00025567,2]
[392854130,1762062639911,-168.0,0.00025609,2]
[392854131,1762062639920,-2073.96728052,0.00025616,2]
[392854132,1762062639930,-420.0,0.00025675,2]
[392854133,1762062639939,-985.0,0.00025729,2]
[392854134,1762062639949,-677.754,0.00025729,2]
[392854135,1762062639959,-2163.0,0.00025729,2]
[392854136,1762062639968,-151.0,0.00025958,2]
[392854137,1762062639977,-168.0,0.00025992,2]
[392854138,1762062639986,-204.23518274,0.00026005,3]
[392854139,1762062639995,-190.58,0.00026124,2]
[392854140,1762062640003,-168.0,0.00026193,2]
[392854141,1762062640013,-168.0,0.00026283,2]
[392854142,1762062640022,-168.0,0.00026398,2]
[392854143,1762062640031,-342.09101969,0.0002671,2]
[392854144,1762062640040,-221.76331295,0.0002704,2]
[392854145,1762062640050,-217.8,0.00027091,2]
[392854146,1762062640060,-255.901,0.00027165,15]
[392854147,1762062640070,-420.29491112,0.00027333,3]
[392854148,1762062640080,-2460.05,0.000274,2]
[392854149,1762062640089,-480.0,0.00027853,2]
[392854150,1762062640098,-245.03,0.00028059,2]
[392854151,1762062640108,-985.0,0.00028729,2]
[392854152,1762062640118,-627.0,0.00028729,2]
[392854153,1762062640127,-2163.0,0.00028729,2]
[392854155,1762062640141,-272.25,0.00029026,2]
[392854158,1762062640153,-223.0930883,0.00029028,2]
[392854160,1762062640163,-251.11433967,0.0002904,2]
[392854162,1762062640173,-420.29491112,0.00029173,4]
[392854164,1762062640183,-8863.15,0.000292,7]
[392854166,1762062640192,-689.49,0.000292,14]
[392854168,1762062640203,-340.698928,0.000292,7]
[392854170,1762062640214,-160.0,0.000292,2]
[392854172,1762062640223,-198.99466666,0.00029333,2]
[392854174,1762062640232,-198.99466666,0.00029333,2]
[392854176,1762062640241,-927.15555705,0.00029541,2]
[392854177,1762062640251,-340.698928,0.00029588,7]
[392854179,1762062640260,-260.0,0.00029748,2]
[392854181,1762062640269,-340.698928,0.00029975,7]
[392854183,1762062640278,-2000.0,0.0003,7]
[392854185,1762062640287,-360.0,0.00030296,2]
[392854187,1762062640297,-340.698928,0.00030362,7]
[392854189,1762062640306,-340.698928,0.0003075,7]
[392854191,1762062640315,-23985.6659385,0.00030759,2]
[392854193,1762062640325,-340.698928,0.000308,2]
[392854195,1762062640334,-506.10893941,0.000308,5]
[392854197,1762062640343,-1188.92334286,0.00030831,2]
[392854199,1762062640352,-420.29491112,0.00031013,5]
[392854202,1762062640363,-280.46536638,0.0003104,2]
[392854204,1762062640372,-985.0,0.00031729,2]
[392854206,1762062640381,-627.0,0.00031729,2]
[392854208,1762062640391,-2163.0,0.00031729,2]
[392854210,1762062640400,-223.0930883,0.00031787,3]
[392854212,1762062640410,-340.698928,0.00031825,2]
[392854214,1762062640419,-580.44488331,0.00032257,2]
[392854216,1762062640429,-340.698928,0.0003285,2]
[392854218,1762062640439,-420.71520603,0.00032852,7]
[392854220,1762062640449,-1507.15286638,0.00032877,120]
[392854222,1762062640459,-500.0,0.00032877,7]
[392854225,1762062640470,-586.39641663,0.00032877,7]
[392854228,1762062640480,-179.73040439,0.00033006,10]
[392854230,1762062640490,-309.8163931,0.0003304,120]
[392854232,1762062640499,-2460.05,0.000331,14]
[392854234,1762062640508,-176.05202693,0.000332,117]
[392854236,1762062640517,-168.91844944,0.00033769,2]
[392854238,1762062640527,-340.698928,0.00033875,2]
[392854240,1762062640536,-223.0930883,0.00034547,4]
[392854242,1762062640546,-985.0,0.00034729,2]
[392854244,1762062640555,-627.0,0.00034729,2]
[392854246,1762062640564,-420.722,0.00034729,2]
[392854248,1762062640573,-57765.0930819,0.00034772,2]
[392854251,1762062640583,-151.0,0.00034772,2]
[392854252,1762062640592,-151.0,0.00034772,2]
[392854253,1762062640601,-340.698928,0.000349,2]
[392854254,1762062640611,-339.16741981,0.0003504,120]
[392854255,1762062640620,-153.0,0.00035227,2]
[392854256,1762062640630,-646.61032527,0.00035624,2]
[392854257,1762062640640,-44472.31348623,0.00036,2]
[392854258,1762062640649,-161.0,0.00036,120]
[392854259,1762062640658,-161.0,0.00036,120]
[392854260,1762062640668,-10243.0,0.00036,2]
[392854261,1762062640677,-450.0,0.00036,7]
[392854262,1762062640687,-33784.02104859,0.0003601,5]
[392854263,1762062640696,-5000.0,0.00036041,3]
[392854264,1762062640706,-150.92162858,0.00036055,30]
[392854265,1762062640716,-160.0,0.00036063,2]
[392854266,1762062640725,-151.0,0.00036164,7]
[392854267,1762062640735,-153.087128,0.00036164,7]
[392854268,1762062640744,-150.92162858,0.00036219,30]
[392854269,1762062640754,-8863.15,0.000363,14]
[392854270,1762062640763,-689.49,0.000363,30]
[392854271,1762062640773,-150.92162858,0.00036384,30]
[392854272,1762062640782,-150.92162858,0.00036575,30]
[392854273,1762062640791,-200.0,0.00036702,2]
[392854274,1762062640800,-150.92162858,0.0003674,30]
[392854275,1762062640809,-1008.12,0.000368,90]
[392854276,1762062640819,-151.0,0.00036918,2]
[392854277,1762062640828,-151.0,0.0003692,2]
[392854278,1762062640838,-150.92162858,0.00036932,30]
[392854279,1762062640847,-1068.52096992,0.00036956,5]
[392854280,1762062640856,-500.0,0.00036973,5]
[392854281,1762062640866,-151.0,0.00036978,2]
[392854282,1762062640875,-151.0,0.0003698,2]
[392854283,1762062640884,-151.0,0.00036981,2]
[392854284,1762062640893,-151.0,0.00036981,2]
[392854285,1762062640903,-151.0,0.00036981,2]
[392854286,1762062640912,-521.90638839,0.00036986,8]
[392854287,1762062640921,-500.0,0.00036986,8]
[392854288,1762062640930,-501.29672189,0.00036986,8]
[392854289,1762062640939,-505.34923877,0.00036986,8]
[392854290,1762062640949,-504.98041558,0.00036986,8]
[392854291,1762062640958,-504.34382021,0.00036986,8]
[392854292,1762062640967,-503.6888413,0.00036986,8]
[392854293,1762062640976,-628.51864887,0.00036986,8]
[392854294,1762062640986,-502.49324352,0.00036986,8]
[392854295,1762062640996,-500.0,0.00036986,8]
[392854296,1762062641005,-510.6210062,0.00036986,8]
[392854297,1762062641014,-500.0,0.00036986,8]
[392854298,1762062641024,-504.06112382,0.00036986,8]
[392854299,1762062641034,-500.0,0.00036986,8]
[392854300,1762062641043,-369.80438816,0.00036986,8]
[392854301,1762062641053,-508.94460024,0.00036986,8]
[392854302,1762062641062,-500.0,0.00036986,8]
[392854303,1762062641071,-509.32879778,0.00036986,8]
[392854304,1762062641080,-500.0,0.00036986,8]
[392854305,1762062641090,-227.27563616,0.00036986,8]
[392854306,1762062641099,-515.42704965,0.00036986,8]
[392854307,1762062641108,-500.0,0.00036986,8]
[392854308,1762062641118,-513.62430687,0.00036986,8]
[392854309,1762062641129,-500.0,0.00036986,8]
[392854310,1762062641138,-500.0,0.00036986,8]
[392854311,1762062641148,-520.31736073,0.00036986,8]
[392854312,1762062641157,-500.0,0.00036986,8]
[392854313,1762062641167,-500.0,0.00036986,8]
[392854314,1762062641176,-184.55962574,0.00036986,8]
[392854315,1762062641185,-500.0,0.00036986,8]
[392854316,1762062641195,-500.0,0.00036986,8]
[392854317,1762062641204,-518.09246894,0.00036986,8]
[392854318,1762062641213,-518.91127601,0.00036986,8]
[392854319,1762062641223,-519.35951129,0.00036986,8]
[392854320,1762062641232,-500.0,0.00036986,8]
[392854321,1762062641241,-525.84300693,0.00036986,8]
[392854322,1762062641251,-500.0,0.00036986,8]
[392854323,1762062641261,-500.0,0.00036986,8]
[392854324,1762062641270,-510.02281677,0.00036986,8]
[392854325,1762062641279,-500.0,0.00036986,8]
[392854326,1762062641288,-447.18007503,0.00036986,8]
[392854327,1762062641298,-508.51510946,0.00036986,8]
[392854328,1762062641307,-500.0,0.00036986,8]
[392854329,1762062641316,-522.48882327,0.00036986,8]
[392854330,1762062641326,-507.17377707,0.00036986,8]
[392854331,1762062641335,-506.52306814,0.00036986,8]
[392854332,1762062641344,-500.0,0.00036986,8]
[392854333,1762062641354,-500.0,0.00036986,8]
[392854334,1762062641363,-207.9955144,0.00036986,8]
[392854335,1762062641372,-483.79214863,0.00036986,8]
[392854336,1762062641381,-502.39379996,0.00036986,8]
[392854337,1762062641391,-315.88862083,0.00036986,8]
[392854338,1762062641400,-499.87781416,0.00036986,8]
[392854339,1762062641409,-501.77643622,0.00036986,8]
[392854340,1762062641419,-500.0,0.00036986,8]
[392854341,1762062641504,-500.0,0.00036986,8]
[392854342,1762062641515,-503.33660174,0.00036986,8]
[392854343,1762062641524,-387.47414749,0.00036986,8]
[392854344,1762062641535,-504.68881764,0.00036986,8]
[392854345,1762062641544,-607.96927261,0.00036986,8]
[392854346,1762062641554,-453.968629,0.00036986,8]
[392854347,1762062641564,-503.36869051,0.00036986,8]
[392854348,1762062641573,-508.47955183,0.00036986,8]
[392854349,1762062641583,-195.61001003,0.00036986,8]
[392854350,1762062641592,-500.0,0.00036986,8]
[392854351,1762062641602,-500.0,0.00036986,8]
[392854352,1762062641612,-514.73851679,0.00036986,8]
[392854353,1762062641621,-228.89894088,0.00036986,8]
[392854354,1762062641631,-322.4767774,0.00036986,8]
[392854355,1762062641641,-500.0,0.00036986,8]
[392854356,1762062641650,-502.13199961,0.00036986,8]
[392854357,1762062641660,-500.0,0.00036986,8]
[392854358,1762062641670,-500.0,0.00036986,8]
[392854359,1762062641680,-169.20770407,0.00036986,8]
[392854360,1762062641689,-502.46103502,0.00036986,8]
[392854361,1762062641701,-507.69223888,0.00036986,8]
[392854362,1762062641710,-504.69912965,0.00036986,8]
[392854363,1762062641720,-507.9302531,0.00036986,8]
[392854364,1762062641729,-500.0,0.00036986,8]
[392854365,1762062641739,-512.15953133,0.00036986,8]
[392854366,1762062641748,-470.53855954,0.00036986,8]
[392854367,1762062641758,-500.0,0.00036986,8]
[392854368,1762062641768,-500.0,0.00036986,8]
[392854369,1762062641777,-181.06003763,0.00036986,8]
[392854370,1762062641787,-505.24770827,0.00036986,8]
[392854371,1762062641796,-500.0,0.00036986,8]
[392854372,1762062641806,-500.0,0.00036986,8]
[392854373,1762062641815,-508.84503277,0.00036986,8]
[392854374,1762062641826,-500.0,0.00036986,8]
[392854375,1762062641835,-501.31899665,0.00036986,8]
[392854376,1762062641845,-500.0,0.00036986,8]
[392854377,1762062641854,-500.0,0.00036986,8]
[392854378,1762062641863,-512.17229097,0.00036986,8]
[392854379,1762062641873,-500.0,0.00036986,8]
[392854380,1762062641883,-500.0,0.00036986,8]
[392854381,1762062641892,-336.84734408,0.00036986,8]
[392854382,1762062641902,-500.0,0.00036986,8]
[392854383,1762062641911,-250.86637819,0.00036986,8]
[392854384,1762062641922,-515.75046809,0.00036986,8]
[392854385,1762062641932,-500.0,0.00036986,8]
[392854386,1762062641942,-500.0,0.00036986,8]
[392854387,1762062641952,-394.2989933,0.00036986,8]
[392854388,1762062641962,-326.02861386,0.00036986,8]
[392854389,1762062641971,-512.81816158,0.00036986,8]
[392854390,1762062641981,-500.0,0.00036986,8]
[392854391,1762062641991,-500.0,0.00036986,8]
[392854392,1762062642000,-514.67801081,0.00036986,8]
[392854393,1762062642009,-500.0,0.00036986,8]
[392854394,1762062642019,-500.0,0.00036986,8]
[392854395,1762062642029,-560.23838505,0.00036986,8]
[392854396,1762062642039,-505.0294236,0.00036986,8]
[392854397,1762062642050,-500.0,0.00036986,8]
[392854398,1762062642059,-209.66290422,0.00036986,8]
[392854399,1762062642069,-500.0,0.00036986,8]
[392854400,1762062642079,-493.69698437,0.00036986,8]
[392854401,1762062642090,-500.0,0.00036986,8]
[392854402,1762062642100,-189.19494601,0.00036986,8]
[392854403,1762062642109,-500.0,0.00036986,8]
[392854404,1762062642119,-361.51166363,0.00036986,8]
[392854405,1762062642132,-500.0,0.00036986,8]
[392854406,1762062642144,-500.0,0.00036986,8]
[392854407,1762062642153,-500.0,0.00036986,8]
[392854408,1762062642163,-516.18355424,0.00036986,8]
[392854409,1762062642172,-565.09563704,0.00036986,8]
[392854410,1762062642182,-500.0,0.00036986,8]
[392854411,1762062642192,-500.0,0.00036986,8]
[392854412,1762062642202,-294.30050736,0.00036986,8]
[392854413,1762062642212,-505.44311574,0.00036986,8]